[Event "Live Chess"]
[Site "Chess.com"]
[Date "2024.06.02"]
[Round "-"]
[White "Duke_of_Bebington"]
[Black "SimonB4a"]
[Result "0-1"]
[WhiteElo "1636"]
[BlackElo "2186"]
[TimeControl "300"]
[EndTime "3:08:53 PDT"]
[Termination "SimonB4a won by checkmate"]

1. e4 {[%clk 0:04:56.5]} 1... e6 {[%clk 0:04:59.1]} 2. d4 {[%clk 0:04:54.8]}
2... d5 {[%clk 0:04:58.3]} 3. Nd2 {[%clk 0:04:53.7]} 3... Nf6 {[%clk 0:04:57.3]}
4. Bd3 {[%clk 0:04:52.6]} 4... c5 {[%clk 0:04:54.6]} 5. c3 {[%clk 0:04:51.6]}
5... Nc6 {[%clk 0:04:53.2]} 6. e5 {[%clk 0:04:50]} 6... Nd7 {[%clk 0:04:52.2]}
7. Ne2 {[%clk 0:04:49.2]} 7... cxd4 {[%clk 0:04:51.2]} 8. cxd4 {[%clk
0:04:46.2]} 8... f6 {[%clk 0:04:50.5]} 9. Nf4 {[%clk 0:04:42.8]} 9... Nxd4
{[%clk 0:04:48.3]} 10. Qh5+ {[%clk 0:04:34.7]} 10... Ke7 {[%clk 0:04:47.4]} 11.
Ng6+ {[%clk 0:04:33.5]} 11... hxg6 {[%clk 0:04:44.7]} 12. exf6+ {[%clk 0:04:33]}
12... Nxf6 {[%clk 0:04:43.3]} 13. Qxh8 {[%clk 0:04:32.6]} 13... Kf7 {[%clk
0:04:42.5]} 14. O-O {[%clk 0:03:58.8]} 14... e5 {[%clk 0:04:40.9]} 15. Qh4
{[%clk 0:03:50.8]} 15... Bd6 {[%clk 0:04:25]} 16. Bb1 {[%clk 0:03:36]} 16... Qc7
{[%clk 0:04:10.3]} 17. h3 {[%clk 0:03:12.1]} 17... Bf5 {[%clk 0:04:08]} 18. Bxf5
{[%clk 0:03:08.2]} 18... Nxf5 {[%clk 0:04:06.7]} 19. Qa4 {[%clk 0:03:01.5]}
19... Nd4 {[%clk 0:03:54.4]} 20. Nb3 {[%clk 0:02:56]} 20... Ne2+ {[%clk
0:03:31.9]} 21. Kh1 {[%clk 0:02:52.2]} 21... Rh8 {[%clk 0:03:30.4]} 22. Bg5
{[%clk 0:02:34.8]} 22... Qc8 {[%clk 0:03:22.2]} 23. g4 {[%clk 0:02:06.9]} 23...
Ne4 {[%clk 0:03:05.8]} 24. f4 {[%clk 0:01:50.3]} 24... Rxh3+ {[%clk 0:03:03]}
25. Kg2 {[%clk 0:01:49]} 25... Qxg4# {[%clk 0:03:01.3]} 0-1

[Event "Live Chess"]
[Site "Chess.com"]
[Date "2024.06.02"]
[Round "-"]
[White "AlexanderMatlak"]
[Black "blunderabit"]
[Result "1-0"]
[WhiteElo "2390"]
[BlackElo "1757"]
[TimeControl "300"]
[EndTime "3:08:55 PDT"]
[Termination "AlexanderMatlak won on time"]

1. c4 {[%clk 0:04:55.9]} 1... e5 {[%clk 0:04:57.8]} 2. Nc3 {[%clk 0:04:53.2]}
2... Bb4 {[%clk 0:04:57.2]} 3. Nd5 {[%clk 0:04:51.9]} 3... Be7 {[%clk
0:04:54.9]} 4. Nf3 {[%clk 0:04:50]} 4... c6 {[%clk 0:04:48.3]} 5. Nxe7 {[%clk
0:04:47.7]} 5... Qxe7 {[%clk 0:04:46.5]} 6. d3 {[%clk 0:04:46.1]} 6... d6 {[%clk
0:04:40.4]} 7. g3 {[%clk 0:04:45.4]} 7... a5 {[%clk 0:04:30]} 8. Bg2 {[%clk
0:04:44.7]} 8... Nf6 {[%clk 0:04:27.3]} 9. O-O {[%clk 0:04:43.9]} 9... O-O
{[%clk 0:04:25.2]} 10. b3 {[%clk 0:04:43.4]} 10... Nbd7 {[%clk 0:04:23.5]} 11.
a3 {[%clk 0:04:42.8]} 11... Nc5 {[%clk 0:04:17.6]} 12. Bb2 {[%clk 0:04:40.4]}
12... Bg4 {[%clk 0:04:12.8]} 13. b4 {[%clk 0:04:36]} 13... axb4 {[%clk
0:04:10.5]} 14. axb4 {[%clk 0:04:35.9]} 14... Ncd7 {[%clk 0:03:55.9]} 15. Qc2
{[%clk 0:04:25.6]} 15... Rfe8 {[%clk 0:03:46.4]} 16. h3 {[%clk 0:04:22.7]} 16...
Bh5 {[%clk 0:03:40.7]} 17. b5 {[%clk 0:04:21.2]} 17... c5 {[%clk 0:03:22]} 18.
g4 {[%clk 0:04:17.6]} 18... Bg6 {[%clk 0:03:19.9]} 19. Nh4 {[%clk 0:04:16.6]}
19... Nb6 {[%clk 0:03:18.6]} 20. Nxg6 {[%clk 0:04:14.5]} 20... hxg6 {[%clk
0:03:17.4]} 21. Bc3 {[%clk 0:04:01.4]} 21... Rxa1 {[%clk 0:02:57.7]} 22. Rxa1
{[%clk 0:04:01.3]} 22... e4 {[%clk 0:02:53.3]} 23. Ra7 {[%clk 0:03:38.4]} 23...
exd3 {[%clk 0:02:41.7]} 24. exd3 {[%clk 0:03:38.3]} 24... Rb8 {[%clk 0:02:39]}
25. Qb2 {[%clk 0:03:07.6]} 25... Kh7 {[%clk 0:02:16.8]} 26. Bf3 {[%clk 0:02:55]}
26... Kg8 {[%clk 0:02:05.7]} 27. Kg2 {[%clk 0:02:52.4]} 27... Kh7 {[%clk
0:02:03.4]} 28. Ra1 {[%clk 0:02:47.4]} 28... Re8 {[%clk 0:01:52]} 29. Re1 {[%clk
0:02:45.2]} 29... Qd7 {[%clk 0:01:32.6]} 30. Rxe8 {[%clk 0:02:43.5]} 30... Nxe8
{[%clk 0:01:31.3]} 31. Qe2 {[%clk 0:02:40.8]} 31... Nf6 {[%clk 0:01:24.3]} 32.
Bxf6 {[%clk 0:02:37.6]} 32... gxf6 {[%clk 0:01:21.6]} 33. Qe4 {[%clk 0:02:37.3]}
33... d5 {[%clk 0:01:05.2]} 34. cxd5 {[%clk 0:02:25.6]} 34... Nc8 {[%clk
0:01:01.4]} 35. Qf4 {[%clk 0:02:19.8]} 35... Qd6 {[%clk 0:00:52.7]} 36. Qe3
{[%clk 0:02:12.6]} 36... Ne7 {[%clk 0:00:44]} 37. Qe4 {[%clk 0:02:11.7]} 37...
f5 {[%clk 0:00:26.1]} 38. Qc4 {[%clk 0:02:01.3]} 38... fxg4 {[%clk 0:00:20.4]}
39. hxg4 {[%clk 0:02:01.2]} 39... Kg7 {[%clk 0:00:16]} 40. d4 {[%clk 0:01:59.8]}
40... cxd4 {[%clk 0:00:11.8]} 41. Qxd4+ {[%clk 0:01:59.7]} 41... Kg8 {[%clk
0:00:10.7]} 42. b6 {[%clk 0:01:53.5]} 42... Nc8 {[%clk 0:00:07.8]} 43. Qe3
{[%clk 0:01:44.9]} 43... Nxb6 {[%clk 0:00:06.1]} 44. Qe8+ {[%clk 0:01:43.9]}
44... Kg7 {[%clk 0:00:04.9]} 45. Qe4 {[%clk 0:01:41.6]} 45... Kg8 {[%clk
0:00:01.7]} 46. Qd4 {[%clk 0:01:37]} 1-0

[Event "Live Chess"]
[Site "Chess.com"]
[Date "2024.06.02"]
[Round "-"]
[White "NottheBishopSacrifice"]
[Black "matt1979"]
[Result "1-0"]
[WhiteElo "2312"]
[BlackElo "1408"]
[TimeControl "300"]
[EndTime "3:09:19 PDT"]
[Termination "NottheBishopSacrifice won on time"]

1. Nf3 {[%clk 0:04:58]} 1... f5 {[%clk 0:04:58.1]} 2. g3 {[%clk 0:04:57.9]} 2...
Nf6 {[%clk 0:04:56.9]} 3. Bg2 {[%clk 0:04:57.8]} 3... e6 {[%clk 0:04:55.6]} 4.
O-O {[%clk 0:04:57.4]} 4... Be7 {[%clk 0:04:51.9]} 5. b3 {[%clk 0:04:54.1]} 5...
d6 {[%clk 0:04:51.2]} 6. Bb2 {[%clk 0:04:52.1]} 6... O-O {[%clk 0:04:50.1]} 7.
c4 {[%clk 0:04:49.7]} 7... e5 {[%clk 0:04:49]} 8. d3 {[%clk 0:04:47]} 8... Nbd7
{[%clk 0:04:46.3]} 9. Nc3 {[%clk 0:04:45.3]} 9... c6 {[%clk 0:04:44.3]} 10. Ng5
{[%clk 0:04:41.7]} 10... Nb6 {[%clk 0:04:37.9]} 11. a4 {[%clk 0:04:29.9]} 11...
h6 {[%clk 0:04:35.8]} 12. Nf3 {[%clk 0:04:27.7]} 12... Be6 {[%clk 0:04:26.7]}
13. Nh4 {[%clk 0:04:24.2]} 13... Qe8 {[%clk 0:04:12.3]} 14. a5 {[%clk
0:04:21.6]} 14... Nbd7 {[%clk 0:04:07.1]} 15. a6 {[%clk 0:04:20.4]} 15... bxa6
{[%clk 0:03:45.5]} 16. Bxc6 {[%clk 0:04:17]} 16... Rc8 {[%clk 0:03:42.8]} 17.
Bb7 {[%clk 0:04:14.6]} 17... Rc7 {[%clk 0:03:41]} 18. Bxa6 {[%clk 0:04:13.4]}
18... Nc5 {[%clk 0:03:36.8]} 19. Bb5 {[%clk 0:04:11.3]} 19... Qh5 {[%clk
0:03:30.8]} 20. b4 {[%clk 0:04:09.6]} 20... Ncd7 {[%clk 0:03:27.7]} 21. Nf3
{[%clk 0:03:59]} 21... f4 {[%clk 0:03:17.7]} 22. Ne4 {[%clk 0:03:55.9]} 22...
Nxe4 {[%clk 0:03:15.3]} 23. dxe4 {[%clk 0:03:54.1]} 23... fxg3 {[%clk
0:03:11.1]} 24. fxg3 {[%clk 0:03:51.4]} 24... Bg4 {[%clk 0:02:59.5]} 25. Qd5+
{[%clk 0:03:47.2]} 25... Kh8 {[%clk 0:02:52.6]} 26. Ra3 {[%clk 0:03:46.3]} 26...
Nf6 {[%clk 0:02:42]} 27. Qd3 {[%clk 0:03:41.5]} 27... Bh3 {[%clk 0:02:36.5]} 28.
Rfa1 {[%clk 0:03:37.7]} 28... Ng4 {[%clk 0:02:32.5]} 29. Rxa7 {[%clk 0:03:33.7]}
29... Rxa7 {[%clk 0:02:19.8]} 30. Rxa7 {[%clk 0:03:33.6]} 30... Bd8 {[%clk
0:02:14.4]} 31. c5 {[%clk 0:03:29.5]} 31... dxc5 {[%clk 0:02:07.1]} 32. bxc5
{[%clk 0:03:29.4]} 32... Bg5 {[%clk 0:01:26]} 33. Ra3 {[%clk 0:03:11.2]} 33...
Be3+ {[%clk 0:01:22.7]} 34. Qxe3 {[%clk 0:02:48.5]} 34... Nxe3 {[%clk
0:01:21.2]} 35. Rxe3 {[%clk 0:02:48.4]} 35... Bg4 {[%clk 0:01:16.3]} 36. Kg2
{[%clk 0:02:33.5]} 36... Bh3+ {[%clk 0:01:13.6]} 37. Kg1 {[%clk 0:02:31.1]}
37... Bg4 {[%clk 0:01:12.6]} 38. c6 {[%clk 0:02:18]} 38... Rd8 {[%clk 0:01:04]}
39. Rd3 {[%clk 0:01:48.5]} 39... Rxd3 {[%clk 0:00:52.2]} 40. Bxd3 {[%clk
0:01:48.4]} 40... Bxf3 {[%clk 0:00:47.2]} 41. exf3 {[%clk 0:01:47.4]} 41... Qxf3
{[%clk 0:00:46.2]} 42. c7 {[%clk 0:01:46.6]} 42... Qe3+ {[%clk 0:00:40.3]} 43.
Kg2 {[%clk 0:01:44.3]} 43... Qc5 {[%clk 0:00:30.9]} 44. Bxe5 {[%clk 0:01:42.3]}
44... Kg8 {[%clk 0:00:25.1]} 45. Ba6 {[%clk 0:01:40.5]} 45... Qc2+ {[%clk
0:00:23]} 46. Kh3 {[%clk 0:01:38.3]} 46... Qxe4 {[%clk 0:00:08.9]} 47. c8=Q+
{[%clk 0:01:36.8]} 47... Kh7 {[%clk 0:00:07.9]} 48. Qc7 {[%clk 0:01:24]} 48...
Qf5+ {[%clk 0:00:06.3]} 49. Kg2 {[%clk 0:01:23.2]} 49... Qe4+ {[%clk 0:00:05]}
50. Kf2 {[%clk 0:01:22]} 50... Qf5+ {[%clk 0:00:04]} 51. Ke3 {[%clk 0:01:20.5]}
51... Qg5+ {[%clk 0:00:02.8]} 52. Kd4 {[%clk 0:01:19.6]} 52... Qd2+ {[%clk
0:00:01.4]} 53. Bd3+ {[%clk 0:01:18.1]} 1-0

[Event "Live Chess"]
[Site "Chess.com"]
[Date "2024.06.02"]
[Round "-"]
[White "Bradfield133"]
[Black "Kyrylo7770"]
[Result "1-0"]
[WhiteElo "1872"]
[BlackElo "1615"]
[TimeControl "300"]
[EndTime "3:09:41 PDT"]
[Termination "Bradfield133 won by checkmate"]

1. c4 {[%clk 0:04:57.9]} 1... c6 {[%clk 0:04:59.1]} 2. Qa4 {[%clk 0:04:55.3]}
2... d5 {[%clk 0:04:58.9]} 3. cxd5 {[%clk 0:04:53.9]} 3... Qxd5 {[%clk
0:04:58.2]} 4. Nf3 {[%clk 0:04:52.8]} 4... Nf6 {[%clk 0:04:55.8]} 5. g3 {[%clk
0:04:51.6]} 5... Bg4 {[%clk 0:04:54.9]} 6. Bg2 {[%clk 0:04:50.2]} 6... e6 {[%clk
0:04:52.3]} 7. O-O {[%clk 0:04:48.2]} 7... Qd8 {[%clk 0:04:50.7]} 8. d3 {[%clk
0:04:44.5]} 8... Bd6 {[%clk 0:04:49.2]} 9. Nbd2 {[%clk 0:04:42.3]} 9... O-O
{[%clk 0:04:48.3]} 10. a3 {[%clk 0:04:37.5]} 10... Nbd7 {[%clk 0:04:46.4]} 11.
Rb1 {[%clk 0:04:34.8]} 11... Nb6 {[%clk 0:04:45.4]} 12. Qc2 {[%clk 0:04:33.5]}
12... Nfd5 {[%clk 0:04:40.3]} 13. b4 {[%clk 0:04:24.9]} 13... h5 {[%clk
0:04:36.8]} 14. e4 {[%clk 0:04:11.3]} 14... Nc7 {[%clk 0:04:32.4]} 15. d4 {[%clk
0:04:03.1]} 15... Bxf3 {[%clk 0:04:30.7]} 16. Nxf3 {[%clk 0:03:57.8]} 16... Be7
{[%clk 0:04:29.4]} 17. Bb2 {[%clk 0:03:53.2]} 17... Bf6 {[%clk 0:04:27.5]} 18.
Rbd1 {[%clk 0:03:48.3]} 18... h4 {[%clk 0:04:26.5]} 19. gxh4 {[%clk 0:03:27.8]}
19... Bxh4 {[%clk 0:04:24.3]} 20. Nxh4 {[%clk 0:03:26.8]} 20... Qxh4 {[%clk
0:04:23.8]} 21. Rd3 {[%clk 0:03:25.6]} 21... Nb5 {[%clk 0:04:04.6]} 22. Rh3
{[%clk 0:03:18.1]} 22... Qg5 {[%clk 0:04:03.4]} 23. Rg3 {[%clk 0:03:16.9]} 23...
Qf4 {[%clk 0:04:00]} 24. d5 {[%clk 0:03:08.5]} 24... cxd5 {[%clk 0:03:57]} 25.
Rxg7+ {[%clk 0:03:04]} 25... Kh8 {[%clk 0:03:55.2]} 26. Rg4+ {[%clk 0:02:55.9]}
26... e5 {[%clk 0:03:52.1]} 27. Rxf4 {[%clk 0:02:54.2]} 27... d4 {[%clk
0:03:49.7]} 28. Rf5 {[%clk 0:02:49.8]} 28... f6 {[%clk 0:03:46.2]} 29. Qe2
{[%clk 0:02:47.3]} 29... Kg7 {[%clk 0:03:42.9]} 30. Qg4+ {[%clk 0:02:44.9]}
30... Kf7 {[%clk 0:03:42.2]} 31. Qh5+ {[%clk 0:02:40.2]} 31... Ke6 {[%clk
0:03:41]} 32. Bh3 {[%clk 0:02:34.7]} 32... Rg8+ {[%clk 0:03:40]} 33. Kh1 {[%clk
0:02:33.2]} 33... Ke7 {[%clk 0:03:36.5]} 34. Qh7+ {[%clk 0:02:28]} 34... Kd6
{[%clk 0:03:34]} 35. Rxf6# {[%clk 0:02:23.7]} 1-0

[Event "Live Chess"]
[Site "Chess.com"]
[Date "2024.06.02"]
[Round "-"]
[White "NeilDruggan73"]
[Black "vincents82"]
[Result "0-1"]
[WhiteElo "1693"]
[BlackElo "2014"]
[TimeControl "300"]
[EndTime "3:09:42 PDT"]
[Termination "vincents82 won by checkmate"]

1. d4 {[%clk 0:04:56.8]} 1... d5 {[%clk 0:04:59.2]} 2. Bg5 {[%clk 0:04:53.7]}
2... f6 {[%clk 0:04:56.1]} 3. Bd2 {[%clk 0:04:50.9]} 3... c5 {[%clk 0:04:54.7]}
4. e4 {[%clk 0:04:48.7]} 4... dxe4 {[%clk 0:04:52.4]} 5. dxc5 {[%clk 0:04:46.4]}
5... e5 {[%clk 0:04:51.5]} 6. Nc3 {[%clk 0:04:41.2]} 6... Bf5 {[%clk 0:04:47.9]}
7. Bb5+ {[%clk 0:04:34.3]} 7... Nc6 {[%clk 0:04:46.3]} 8. Qe2 {[%clk 0:04:30.8]}
8... Bxc5 {[%clk 0:04:44.8]} 9. O-O-O {[%clk 0:04:28.8]} 9... Qb6 {[%clk
0:04:39.9]} 10. Nd5 {[%clk 0:04:24]} 10... Qd8 {[%clk 0:04:35]} 11. Bc3 {[%clk
0:04:21.8]} 11... Bd4 {[%clk 0:04:21.6]} 12. Bxd4 {[%clk 0:03:35.8]} 12... Qxd5
{[%clk 0:04:19.8]} 13. Bc4 {[%clk 0:02:54.2]} 13... Nxd4 {[%clk 0:04:11.4]} 14.
Bxd5 {[%clk 0:02:50.9]} 14... Nxe2+ {[%clk 0:04:10]} 15. Nxe2 {[%clk 0:02:49.7]}
15... Ne7 {[%clk 0:03:57.7]} 16. Bxb7 {[%clk 0:02:45.6]} 16... Rb8 {[%clk
0:03:57]} 17. Ba6 {[%clk 0:02:43.3]} 17... O-O {[%clk 0:03:51.5]} 18. Nc3 {[%clk
0:02:38.9]} 18... Kh8 {[%clk 0:03:40.1]} 19. h3 {[%clk 0:02:37.9]} 19... Rb6
{[%clk 0:03:36.9]} 20. Bc4 {[%clk 0:02:33.1]} 20... Rc8 {[%clk 0:03:27.3]} 21.
Bb3 {[%clk 0:02:29.3]} 21... Nc6 {[%clk 0:03:25.4]} 22. g4 {[%clk 0:02:27.4]}
22... Bg6 {[%clk 0:03:23.9]} 23. Nd5 {[%clk 0:02:22.8]} 23... Rbb8 {[%clk
0:03:18.9]} 24. Ba4 {[%clk 0:02:20.3]} 24... Nd4 {[%clk 0:03:16.9]} 25. Ne7
{[%clk 0:02:17.3]} 25... Rc4 {[%clk 0:03:09.8]} 26. Nxg6+ {[%clk 0:02:14.8]}
26... hxg6 {[%clk 0:03:07.9]} 27. Bb3 {[%clk 0:02:12.8]} 27... Nxb3+ {[%clk
0:02:59.8]} 28. axb3 {[%clk 0:02:08.3]} 28... Rxb3 {[%clk 0:02:57.9]} 29. Rd8+
{[%clk 0:02:02.9]} 29... Kh7 {[%clk 0:02:56.9]} 30. c3 {[%clk 0:01:49.6]} 30...
a5 {[%clk 0:02:47.8]} 31. Kc2 {[%clk 0:01:45.9]} 31... Rb7 {[%clk 0:02:42.9]}
32. Rhd1 {[%clk 0:01:43.3]} 32... Rcc7 {[%clk 0:02:37.9]} 33. Ra8 {[%clk
0:01:41.1]} 33... Ra7 {[%clk 0:02:36.4]} 34. Rdd8 {[%clk 0:01:39.2]} 34... g5
{[%clk 0:02:35]} 35. Rh8+ {[%clk 0:01:35.8]} 35... Kg6 {[%clk 0:02:34.1]} 36.
Rag8 {[%clk 0:01:26.9]} 36... a4 {[%clk 0:02:27.1]} 37. h4 {[%clk 0:01:15.8]}
37... gxh4 {[%clk 0:02:25]} 38. Rxh4 {[%clk 0:01:14.3]} 38... a3 {[%clk
0:02:24.4]} 39. bxa3 {[%clk 0:00:50.2]} 39... Rxa3 {[%clk 0:02:23]} 40. Rh3
{[%clk 0:00:49.7]} 40... Ra2+ {[%clk 0:02:22.3]} 41. Kb3 {[%clk 0:00:47.5]}
41... Rxf2 {[%clk 0:02:21.2]} 42. Rf8 {[%clk 0:00:42.4]} 42... Rf3 {[%clk
0:02:18.4]} 43. Rh4 {[%clk 0:00:36.5]} 43... Rfxc3+ {[%clk 0:02:14.9]} 44. Kb4
{[%clk 0:00:35.4]} 44... Rc1 {[%clk 0:02:13.4]} 45. g5 {[%clk 0:00:31.2]} 45...
Rb7+ {[%clk 0:02:12.2]} 46. Ka3 {[%clk 0:00:24.1]} 46... Ra1# {[%clk 0:02:11]}
0-1

[Event "Live Chess"]
[Site "Chess.com"]
[Date "2024.06.02"]
[Round "-"]
[White "juniortay"]
[Black "DJ_Lambton"]
[Result "1-0"]
[WhiteElo "2380"]
[BlackElo "1778"]
[TimeControl "300"]
[EndTime "3:09:59 PDT"]
[Termination "juniortay won by resignation"]

1. e4 {[%clk 0:04:57.7]} 1... c6 {[%clk 0:04:59]} 2. Nf3 {[%clk 0:04:55.8]} 2...
d5 {[%clk 0:04:58.3]} 3. exd5 {[%clk 0:04:55.2]} 3... cxd5 {[%clk 0:04:58.2]} 4.
Ne5 {[%clk 0:04:54.7]} 4... Nf6 {[%clk 0:04:49]} 5. d4 {[%clk 0:04:53.6]} 5...
Nc6 {[%clk 0:04:47.8]} 6. Bb5 {[%clk 0:04:51.7]} 6... Bf5 {[%clk 0:04:46]} 7.
O-O {[%clk 0:04:47.2]} 7... e6 {[%clk 0:04:41.7]} 8. c4 {[%clk 0:04:46.2]} 8...
Qc7 {[%clk 0:04:36.4]} 9. Qa4 {[%clk 0:04:44.5]} 9... Rc8 {[%clk 0:04:35]} 10.
Qxa7 {[%clk 0:04:33.8]} 10... Bd6 {[%clk 0:04:31.4]} 11. c5 {[%clk 0:04:19.5]}
11... Bxe5 {[%clk 0:04:30]} 12. dxe5 {[%clk 0:04:18.5]} 12... Nd7 {[%clk
0:04:27.4]} 13. Bxc6 {[%clk 0:04:12.3]} 13... Qxc6 {[%clk 0:04:22.9]} 14. Bf4
{[%clk 0:04:02.3]} 14... Nxc5 {[%clk 0:04:18.2]} 15. Rc1 {[%clk 0:03:52.5]}
15... O-O {[%clk 0:03:32]} 16. b4 {[%clk 0:03:45.4]} 16... Qa6 {[%clk 0:03:31]}
17. Qxc5 {[%clk 0:03:19.9]} 17... Rxc5 {[%clk 0:03:29.4]} 18. bxc5 {[%clk
0:03:19.8]} 18... Rc8 {[%clk 0:03:27.2]} 19. Nd2 {[%clk 0:03:14.5]} 19... Qd3
{[%clk 0:03:19.7]} 20. Nb3 {[%clk 0:03:10.3]} 20... h6 {[%clk 0:03:13.5]} 21.
Be3 {[%clk 0:02:58.7]} 21... Qe4 {[%clk 0:02:42.8]} 22. Bd4 {[%clk 0:02:56.2]}
22... Bg6 {[%clk 0:02:28.9]} 23. Rc3 {[%clk 0:02:51.7]} 23... Bh5 {[%clk
0:02:24.1]} 24. Rac1 {[%clk 0:02:48]} 24... Qf5 {[%clk 0:02:18.2]} 25. h3 {[%clk
0:02:43.2]} 25... Be2 {[%clk 0:02:16.6]} 26. Re3 {[%clk 0:02:21.9]} 26... Bc4
{[%clk 0:02:15]} 27. Na5 {[%clk 0:02:20.3]} 27... Qf4 {[%clk 0:02:10.9]} 28. Rd1
{[%clk 0:02:13.1]} 28... Bxa2 {[%clk 0:01:58.8]} 29. Nxb7 {[%clk 0:02:09.8]}
29... Bc4 {[%clk 0:01:56.5]} 30. Nd6 {[%clk 0:02:05.8]} 30... Rd8 {[%clk
0:01:50.9]} 31. c6 {[%clk 0:02:04.1]} 31... Ba6 {[%clk 0:01:36.1]} 32. Ra3
{[%clk 0:01:53.1]} 32... Bc8 {[%clk 0:01:34]} 33. Ra8 {[%clk 0:01:51.6]} 33...
Qg5 {[%clk 0:01:18.5]} 34. Rxc8 {[%clk 0:01:47.9]} 34... Rxc8 {[%clk 0:01:16.9]}
35. Nxc8 {[%clk 0:01:46.8]} 35... Qd8 {[%clk 0:01:16.4]} 36. Nd6 {[%clk
0:01:43]} 36... Qc7 {[%clk 0:01:14.6]} 37. Nb7 {[%clk 0:01:42.9]} 37... Kf8
{[%clk 0:01:12.1]} 38. Rc1 {[%clk 0:01:42.8]} 38... Ke7 {[%clk 0:01:11]} 39.
Bc5+ {[%clk 0:01:41.2]} 39... Ke8 {[%clk 0:01:07.4]} 40. Bd6 {[%clk 0:01:40.3]}
40... Qc8 {[%clk 0:01:02.8]} 41. c7 {[%clk 0:01:37.9]} 41... Kd7 {[%clk
0:01:01.9]} 42. Nc5+ {[%clk 0:01:36.4]} 42... Ke8 {[%clk 0:01:00.6]} 43. Rb1
{[%clk 0:01:32.4]} 1-0

[Event "Live Chess"]
[Site "Chess.com"]
[Date "2024.06.02"]
[Round "-"]
[White "slava_ukr"]
[Black "LL220284LL"]
[Result "1-0"]
[WhiteElo "2425"]
[BlackElo "2500"]
[TimeControl "300"]
[EndTime "3:10:12 PDT"]
[Termination "slava_ukr won by checkmate"]

1. e4 {[%clk 0:04:57.1]} 1... c6 {[%clk 0:04:58]} 2. d4 {[%clk 0:04:55.8]} 2...
g6 {[%clk 0:04:56.6]} 3. Nd2 {[%clk 0:04:53.2]} 3... Bg7 {[%clk 0:04:55.4]} 4.
Ngf3 {[%clk 0:04:50.6]} 4... d6 {[%clk 0:04:54.5]} 5. Bd3 {[%clk 0:04:43.7]}
5... Nd7 {[%clk 0:04:53.2]} 6. O-O {[%clk 0:04:41.2]} 6... e5 {[%clk 0:04:52.2]}
7. c3 {[%clk 0:04:39.6]} 7... Ngf6 {[%clk 0:04:51.1]} 8. dxe5 {[%clk 0:04:32.7]}
8... Nxe5 {[%clk 0:04:44.8]} 9. Be2 {[%clk 0:04:26.2]} 9... O-O {[%clk
0:04:42.4]} 10. Nd4 {[%clk 0:04:20]} 10... Re8 {[%clk 0:04:34.2]} 11. h3 {[%clk
0:04:17.6]} 11... Ned7 {[%clk 0:04:30.2]} 12. Qc2 {[%clk 0:03:56.7]} 12... Qc7
{[%clk 0:04:23.9]} 13. f4 {[%clk 0:03:45.5]} 13... Nc5 {[%clk 0:04:13.9]} 14.
Bf3 {[%clk 0:03:42.9]} 14... a5 {[%clk 0:04:11.2]} 15. b3 {[%clk 0:03:27]} 15...
Ne6 {[%clk 0:04:01.3]} 16. Nxe6 {[%clk 0:03:22.9]} 16... Bxe6 {[%clk 0:04:01.2]}
17. Bb2 {[%clk 0:03:13.9]} 17... a4 {[%clk 0:03:52.7]} 18. c4 {[%clk 0:03:08.8]}
18... axb3 {[%clk 0:03:46.8]} 19. axb3 {[%clk 0:03:07.9]} 19... Qb6+ {[%clk
0:03:32.2]} 20. Kh1 {[%clk 0:03:06.9]} 20... Rxa1 {[%clk 0:02:50.1]} 21. Bxa1
{[%clk 0:03:05.4]} 21... Bc8 {[%clk 0:02:37.8]} 22. Qd3 {[%clk 0:02:40.3]} 22...
Qc7 {[%clk 0:02:28.9]} 23. e5 {[%clk 0:02:31.7]} 23... dxe5 {[%clk 0:02:15]} 24.
Bxe5 {[%clk 0:02:29.3]} 24... Qe7 {[%clk 0:01:46.5]} 25. Qc3 {[%clk 0:02:15.9]}
25... Rd8 {[%clk 0:01:36.6]} 26. b4 {[%clk 0:01:52.9]} 26... Ne8 {[%clk
0:01:34.1]} 27. Bxg7 {[%clk 0:01:47.6]} 27... Nxg7 {[%clk 0:01:34]} 28. Ne4
{[%clk 0:01:46.7]} 28... Ne8 {[%clk 0:01:19.3]} 29. g4 {[%clk 0:01:37.5]} 29...
f5 {[%clk 0:01:13.9]} 30. Ng5 {[%clk 0:01:34.3]} 30... fxg4 {[%clk 0:01:08.8]}
31. hxg4 {[%clk 0:01:24.2]} 31... Qf6 {[%clk 0:01:01]} 32. Qe3 {[%clk
0:01:12.4]} 32... Ng7 {[%clk 0:00:59.1]} 33. b5 {[%clk 0:00:52]} 33... Re8
{[%clk 0:00:49.8]} 34. Qd2 {[%clk 0:00:44.5]} 34... h6 {[%clk 0:00:44.3]} 35.
bxc6 {[%clk 0:00:38.5]} 35... hxg5 {[%clk 0:00:37.8]} 36. cxb7 {[%clk
0:00:37.2]} 36... Bxb7 {[%clk 0:00:33]} 37. Bxb7 {[%clk 0:00:35.5]} 37... gxf4
{[%clk 0:00:26.8]} 38. Bd5+ {[%clk 0:00:30.6]} 38... Ne6 {[%clk 0:00:20.6]} 39.
Qxf4 {[%clk 0:00:29.2]} 39... Qh4+ {[%clk 0:00:11.7]} 40. Kg2 {[%clk 0:00:28.2]}
40... Kh8 {[%clk 0:00:09]} 41. Bxe6 {[%clk 0:00:27.1]} 41... Rxe6 {[%clk
0:00:07.8]} 42. Qf8+ {[%clk 0:00:25.7]} 42... Kh7 {[%clk 0:00:07]} 43. Rf7#
{[%clk 0:00:24.6]} 1-0

[Event "Live Chess"]
[Site "Chess.com"]
[Date "2024.06.02"]
[Round "-"]
[White "seasidecastle27"]
[Black "JohanKjeldahl"]
[Result "1/2-1/2"]
[WhiteElo "1927"]
[BlackElo "1808"]
[TimeControl "300"]
[EndTime "3:10:27 PDT"]
[Termination "Game drawn by repetition"]

1. d4 {[%clk 0:04:57.3]} 1... Nf6 {[%clk 0:04:57.9]} 2. Nf3 {[%clk 0:04:56.5]}
2... d6 {[%clk 0:04:55.4]} 3. Bf4 {[%clk 0:04:55.4]} 3... g6 {[%clk 0:04:54.1]}
4. Nbd2 {[%clk 0:04:53.8]} 4... Bg7 {[%clk 0:04:53.6]} 5. e4 {[%clk 0:04:52.8]}
5... c6 {[%clk 0:04:50.9]} 6. Bd3 {[%clk 0:04:51]} 6... O-O {[%clk 0:04:49.8]}
7. Qe2 {[%clk 0:04:49.8]} 7... Nbd7 {[%clk 0:04:48.6]} 8. h3 {[%clk 0:04:35.7]}
8... Qc7 {[%clk 0:04:41.7]} 9. c3 {[%clk 0:04:23.4]} 9... e5 {[%clk 0:04:40.5]}
10. dxe5 {[%clk 0:04:18.5]} 10... dxe5 {[%clk 0:04:39.5]} 11. Bh2 {[%clk
0:04:15.9]} 11... Nh5 {[%clk 0:04:32.6]} 12. Nc4 {[%clk 0:04:08.7]} 12... Nf4
{[%clk 0:04:29.7]} 13. Bxf4 {[%clk 0:03:57.4]} 13... exf4 {[%clk 0:04:28.5]} 14.
O-O-O {[%clk 0:03:47.7]} 14... b5 {[%clk 0:04:27.2]} 15. Ncd2 {[%clk 0:03:42]}
15... Ne5 {[%clk 0:04:19.8]} 16. Nxe5 {[%clk 0:03:39.1]} 16... Bxe5 {[%clk
0:04:18.6]} 17. Nf3 {[%clk 0:03:37.9]} 17... Bg7 {[%clk 0:04:17.2]} 18. h4
{[%clk 0:03:31.8]} 18... Be6 {[%clk 0:04:14.4]} 19. h5 {[%clk 0:03:29.4]} 19...
Bxa2 {[%clk 0:04:07.8]} 20. hxg6 {[%clk 0:03:24.1]} 20... fxg6 {[%clk
0:04:06.4]} 21. Ng5 {[%clk 0:03:22.4]} 21... Qa5 {[%clk 0:04:03]} 22. Nxh7
{[%clk 0:03:02.9]} 22... Rfd8 {[%clk 0:03:59.2]} 23. e5 {[%clk 0:02:49.4]} 23...
Bb3 {[%clk 0:03:49.7]} 24. Nf6+ {[%clk 0:02:13.1]} 24... Kf7 {[%clk 0:03:48]}
25. Ne4 {[%clk 0:01:56.9]} 25... Bxd1 {[%clk 0:03:27.9]} 26. Rxd1 {[%clk
0:01:53.3]} 26... Bxe5 {[%clk 0:03:21.2]} 27. Ng5+ {[%clk 0:01:50.9]} 27... Kf6
{[%clk 0:03:14.6]} 28. Nh7+ {[%clk 0:01:44.8]} 28... Ke6 {[%clk 0:03:10.5]} 29.
Ng5+ {[%clk 0:01:41.4]} 29... Kf6 {[%clk 0:03:08.7]} 30. Nh7+ {[%clk 0:01:40.2]}
30... Ke6 {[%clk 0:03:07.5]} 31. Ng5+ {[%clk 0:01:39.5]} 31... Kf6 {[%clk
0:03:06.6]} 1/2-1/2